[Event "NJSK 2026 Jeugd B"]
[Site "Helmond, Netherlands"]
[Date "2026.05.01"]
[Round "9.1"]
[White "De Jong, Lode"]
[Black "Aravindhan, Achyuth"]
[Result "1-0"]
[TimeControl "90min/40moves + 30min + 30sec/move"]
[WhiteTitle "-"]
[BlackTitle "-"]
[WhiteFideId "40101860"]
[BlackFideId "1084216"]
[WhiteElo "1902"]
[BlackElo "2277"]

1. d4 {[%clk 00:05:05]} {[%emt 00:00:01]} d5 {[%clk 00:05:06]} 2. c4 {[%clk
00:05:07]} e6 {[%clk 00:05:09]} 3. Nf3 {[%clk 00:05:09]} Nf6 {[%clk 00:05:11]}
4. g3 {[%clk 00:05:11]} {[%emt 00:00:02]} dxc4 {[%clk 00:05:14]} 5. Bg2 {[%clk
00:05:12]} Nbd7 {[%clk 00:05:16]} 6. O-O {[%clk 00:04:50]} {[%emt 00:00:26]} c6
{[%clk 00:05:19]} 7. Ne5 {[%clk 00:04:27]} {[%emt 00:00:27]} Qc7 {[%clk
00:04:39]} {[%emt 00:00:43]} 8. Nxc4 {[%clk 00:04:01]} {[%emt 00:00:28]} b5
{[%clk 00:04:31]} {[%emt 00:00:11]} 9. Ncd2 {[%clk 00:04:03]} {[%emt 00:00:02]}
Bb7 {[%clk 00:04:30]} {[%emt 00:00:08]} 10. e4 {[%clk 00:03:46]} {[%emt
00:00:15]} Be7 {[%clk 00:04:31]} {[%emt 00:00:02]} 11. Nc3 {[%clk 00:03:41]}
{[%emt 00:00:09]} O-O {[%clk 00:04:25]} {[%emt 00:00:09]} 12. Qe2 {[%clk
00:03:34]} {[%emt 00:00:10]} a5 {[%clk 00:03:34]} {[%emt 00:00:54]} 13. Rd1
{[%clk 00:03:24]} {[%emt 00:00:12]} Ba6 {[%clk 00:03:22]} {[%emt 00:00:16]} 14.
Qe1 {[%clk 00:03:14]} {[%emt 00:00:13]} e5 {[%clk 00:03:14]} {[%emt 00:00:10]}
15. Nf3 {[%clk 00:03:05]} {[%emt 00:00:12]} exd4 {[%clk 00:02:35]} {[%emt
00:00:42]} 16. Bf4 {[%clk 00:02:50]} {[%emt 00:00:17]} Qb6 {[%clk 00:01:37]}
{[%emt 00:01:02]} 17. Nxd4 {[%clk 00:02:52]} Rad8 {[%clk 00:00:13]} {[%emt
00:01:27]} 18. Rac1 {[%clk 00:02:36]} {[%emt 00:00:19]} c5 {[%clk 00:00:11]}
{[%emt 00:00:05]} 19. Nf5 {[%clk 00:02:37]} {[%emt 00:00:02]} Rfe8 {[%clk
00:00:07]} {[%emt 00:00:08]} 20. e5 {[%clk 00:02:21]} {[%emt 00:00:18]} Bf8
{[%clk 00:00:05]} {[%emt 00:00:07]} 21. Ne4 {[%clk 00:01:35]} {[%emt 00:00:47]}
Nxe4 {[%clk 00:00:06]} {[%emt 00:00:02]} 22. Qxe4 {[%clk 00:01:35]} {[%emt
00:00:02]} c4 {[%clk 00:00:05]} {[%emt 00:00:04]} 23. Qc6 {[%clk 00:01:25]}
{[%emt 00:00:13]} Qxc6 {[%clk 00:00:04]} {[%emt 00:00:05]} 24. Bxc6 {[%clk
00:01:27]} Bc8 {[%clk 00:00:06]} 25. Bxb5 {[%clk 00:01:26]} {[%emt 00:00:03]}
Re6 {[%clk 00:00:05]} {[%emt 00:00:05]} 26. Bxc4 {[%clk 00:01:25]} {[%emt
00:00:03]} Rb6 {[%clk 00:00:07]} 27. e6 {[%clk 00:01:18]} {[%emt 00:00:11]}
fxe6 {[%clk 00:00:04]} {[%emt 00:00:06]} 28. Bc7 {[%clk 00:01:20]} Rc6 {[%clk
00:00:04]} {[%emt 00:00:04]} 29. Bxd8 {[%clk 00:01:20]} {[%emt 00:00:02]} Bb7
{[%clk 00:00:04]} {[%emt 00:00:03]} 30. Rxd7 {[%clk 00:01:21]} {[%emt
00:00:02]} 1-0

[Event "NJSK 2026 Jeugd B"]
[Site "Helmond, Netherlands"]
[Date "2026.05.01"]
[Round "9.2"]
[White "Zecha, Oscar"]
[Black "Baarspul, Bram"]
[Result "1/2-1/2"]
[TimeControl "90min/40moves + 30min + 30sec/move"]
[WhiteTitle "-"]
[BlackTitle "-"]
[WhiteFideId "1073826"]
[BlackFideId "40106187"]
[WhiteElo "2120"]
[BlackElo "2177"]

1. e4 {[%clk 00:05:05]} c5 {[%clk 00:05:05]} {[%emt 00:00:01]} 2. Nf3 {[%clk
00:05:07]} d6 {[%clk 00:05:08]} 3. d4 {[%clk 00:05:10]} cxd4 {[%clk 00:05:10]}
{[%emt 00:00:01]} 4. Nxd4 {[%clk 00:05:12]} Nf6 {[%clk 00:05:12]} 5. Nc3 {[%clk
00:05:15]} a6 {[%clk 00:05:14]} 6. f3 {[%clk 00:05:17]} e5 {[%clk 00:05:16]}
{[%emt 00:00:01]} 7. Nb3 {[%clk 00:05:19]} Be6 {[%clk 00:05:18]} 8. Be3 {[%clk
00:05:22]} h5 {[%clk 00:05:20]} 9. Qd2 {[%clk 00:05:24]} Nbd7 {[%clk 00:05:21]}
{[%emt 00:00:02]} 10. O-O-O {[%clk 00:05:26]} Be7 {[%clk 00:05:23]} 11. Kb1
{[%clk 00:05:27]} {[%emt 00:00:01]} b5 {[%clk 00:05:26]} 12. Nd5 {[%clk
00:05:30]} Bxd5 {[%clk 00:05:27]} {[%emt 00:00:02]} 13. exd5 {[%clk 00:05:30]}
{[%emt 00:00:02]} Nb6 {[%clk 00:05:30]} 14. Bxb6 {[%clk 00:05:29]} {[%emt
00:00:04]} Qxb6 {[%clk 00:05:32]} 15. Na5 {[%clk 00:05:29]} {[%emt 00:00:03]}
Rc8 {[%clk 00:05:33]} {[%emt 00:00:01]} 16. c4 {[%clk 00:05:32]} bxc4 {[%clk
00:05:33]} {[%emt 00:00:03]} 17. Nxc4 {[%clk 00:05:33]} Qa7 {[%clk 00:05:35]}
18. Na5 {[%clk 00:05:36]} {[%emt 00:00:01]} Qd7 {[%clk 00:05:08]} {[%emt
00:00:30]} 19. Bxa6 {[%clk 00:04:55]} {[%emt 00:00:44]} Rc5 {[%clk 00:05:08]}
{[%emt 00:00:01]} 20. a4 {[%clk 00:03:34]} {[%emt 00:01:25]} Qxa4 {[%clk
00:04:38]} {[%emt 00:00:32]} 21. Nb7 {[%clk 00:01:46]} {[%emt 00:01:52]} Rxd5
{[%clk 00:03:46]} {[%emt 00:00:56]} 22. Qe2 {[%clk 00:01:48]} O-O {[%clk
00:03:27]} {[%emt 00:00:22]} 23. Rxd5 {[%clk 00:01:27]} {[%emt 00:00:25]} Nxd5
{[%clk 00:03:27]} {[%emt 00:00:03]} 24. Qc4 {[%clk 00:01:26]} {[%emt 00:00:04]}
Qxc4 {[%clk 00:03:04]} {[%emt 00:00:27]} 25. Bxc4 {[%clk 00:01:28]} Ne3 {[%clk
00:03:04]} {[%emt 00:00:03]} 26. Rc1 {[%clk 00:01:01]} {[%emt 00:00:30]} d5
{[%clk 00:02:27]} {[%emt 00:00:40]} 27. Bd3 {[%clk 00:00:25]} {[%emt 00:00:39]}
Nxg2 {[%clk 00:02:08]} {[%emt 00:00:22]} 28. Rc7 {[%clk 00:00:15]} {[%emt
00:00:13]} Bf6 {[%clk 00:02:03]} {[%emt 00:00:06]} 29. Nd6 {[%clk 00:00:10]}
{[%emt 00:00:09]} Nf4 {[%clk 00:01:47]} {[%emt 00:00:19]} 30. Bc2 {[%clk
00:00:12]} {[%emt 00:00:01]} d4 {[%clk 00:01:41]} {[%emt 00:00:09]} 31. Nxf7
{[%clk 00:00:07]} {[%emt 00:00:08]} Rb8 {[%clk 00:01:16]} {[%emt 00:00:28]} 32.
Nd6 {[%clk 00:00:05]} {[%emt 00:00:05]} d3 {[%clk 00:01:06]} {[%emt 00:00:13]}
33. Rc8+ {[%clk 00:00:07]} {[%emt 00:00:02]} Rxc8 {[%clk 00:00:49]} {[%emt
00:00:20]} 34. Bb3+ {[%clk 00:00:09]} Kf8 {[%clk 00:00:51]} {[%emt 00:00:02]}
35. Nxc8 {[%clk 00:00:11]} g5 {[%clk 00:00:28]} {[%emt 00:00:25]} 36. Bc4
{[%clk 00:00:08]} {[%emt 00:00:08]} g4 {[%clk 00:00:26]} {[%emt 00:00:03]} 37.
fxg4 {[%clk 00:00:10]} {[%emt 00:00:02]} hxg4 {[%clk 00:00:28]} {[%emt
00:00:01]} 38. Kc1 {[%clk 00:00:09]} {[%emt 00:00:02]} e4 {[%clk 00:00:28]}
{[%emt 00:00:02]} 39. Kd1 {[%clk 00:00:06]} {[%emt 00:00:07]} Bxb2 {[%clk
00:00:28]} {[%emt 00:00:04]} 40. Nd6 {[%clk 00:00:07]} {[%emt 00:00:02]} e3
{[%clk 00:00:27]} {[%emt 00:00:04]} 41. Bxd3 {[%clk 00:00:06]} {[%emt
00:00:03]} Nxd3 {[%clk 00:00:26]} {[%emt 00:00:05]} 42. Ke2 {[%clk 00:00:09]}
Be5 {[%clk 00:00:16]} {[%emt 00:00:12]} 43. Nc4 {[%clk 00:00:06]} {[%emt
00:00:05]} Nc1+ {[%clk 00:00:07]} {[%emt 00:00:12]} 44. Kxe3 {[%clk 00:00:09]}
Bxh2 {[%clk 00:00:09]} 45. Kf2 {[%clk 00:00:05]} {[%emt 00:00:06]} Kg7 {[%clk
00:00:09]} {[%emt 00:00:03]} 46. Ne3 {[%clk 00:00:05]} {[%emt 00:00:04]} g3+
{[%clk 00:00:09]} {[%emt 00:00:04]} 47. Kg2 {[%clk 00:00:07]} Ne2 {[%clk
00:00:10]} {[%emt 00:00:02]} 48. Nf5+ {[%emt 00:00:06]} Kf6 {[%clk 00:00:10]}
49. Nxg3 {[%clk 00:00:08]} {[%emt 00:00:01]} Nxg3 {[%clk 00:00:07]} {[%emt
00:00:07]} 50. Kxh2 {[%emt 00:00:02]} 1/2-1/2

[Event "NJSK 2026 Jeugd B"]
[Site "Helmond, Netherlands"]
[Date "2026.05.01"]
[Round "9.3"]
[White "Kurt, Sascha"]
[Black "Groenewoud, Joel"]
[Result "0-1"]
[TimeControl "90min/40moves + 30min + 30sec/move"]
[WhiteTitle "-"]
[BlackTitle "-"]
[WhiteFideId "1082647"]
[BlackFideId "1087746"]
[WhiteElo "2280"]
[BlackElo "2114"]

1. e4 {[%clk 00:05:04]} {[%emt 00:00:02]} c6 {[%clk 00:05:05]} {[%emt
00:00:02]} 2. d4 {[%clk 00:05:06]} d5 {[%clk 00:05:07]} 3. e5 {[%clk 00:05:08]}
{[%emt 00:00:01]} c5 {[%clk 00:05:08]} {[%emt 00:00:02]} 4. dxc5 {[%clk
00:05:08]} {[%emt 00:00:03]} e6 {[%clk 00:05:10]} 5. Bd3 {[%clk 00:05:09]} Nc6
{[%clk 00:05:09]} {[%emt 00:00:04]} 6. Nf3 {[%clk 00:05:10]} {[%emt 00:00:02]}
Bxc5 {[%clk 00:05:09]} {[%emt 00:00:03]} 7. a3 {[%clk 00:05:12]} {[%emt
00:00:01]} Nge7 {[%clk 00:05:07]} {[%emt 00:00:05]} 8. b4 {[%clk 00:05:11]}
{[%emt 00:00:04]} Bb6 {[%clk 00:05:08]} {[%emt 00:00:02]} 9. O-O {[%clk
00:05:07]} {[%emt 00:00:07]} Ng6 {[%clk 00:05:06]} {[%emt 00:00:04]} 10. Bb2
{[%clk 00:05:07]} {[%emt 00:00:04]} O-O {[%clk 00:05:01]} {[%emt 00:00:08]} 11.
Nbd2 {[%clk 00:05:06]} {[%emt 00:00:04]} Bc7 {[%clk 00:04:56]} {[%emt
00:00:09]} 12. Re1 {[%clk 00:04:57]} {[%emt 00:00:12]} f6 {[%clk 00:04:53]}
{[%emt 00:00:05]} 13. exf6 {[%clk 00:04:30]} {[%emt 00:00:31]} gxf6 {[%clk
00:04:53]} {[%emt 00:00:02]} 14. c4 {[%clk 00:04:29]} {[%emt 00:00:05]} Nf4
{[%clk 00:04:15]} {[%emt 00:00:41]} 15. Bf1 {[%clk 00:04:17]} {[%emt 00:00:15]}
d4 {[%clk 00:03:50]} {[%emt 00:00:29]} 16. b5 {[%clk 00:04:13]} {[%emt
00:00:07]} Ne5 {[%clk 00:03:43]} {[%emt 00:00:09]} 17. Bxd4 {[%clk 00:03:57]}
{[%emt 00:00:20]} Ned3 {[%clk 00:03:11]} {[%emt 00:00:35]} 18. Re3 {[%clk
00:03:53]} {[%emt 00:00:06]} e5 {[%clk 00:03:08]} {[%emt 00:00:06]} 19. Bc3
{[%clk 00:03:29]} {[%emt 00:00:28]} Bb6 {[%clk 00:03:05]} {[%emt 00:00:06]} 20.
Qc2 {[%clk 00:03:02]} {[%emt 00:00:30]} Bxe3 {[%clk 00:02:25]} {[%emt
00:00:44]} 21. fxe3 {[%clk 00:03:00]} {[%emt 00:00:05]} Qb6 {[%clk 00:02:26]}
{[%emt 00:00:02]} 22. Nd4 {[%clk 00:02:47]} {[%emt 00:00:16]} exd4 {[%clk
00:02:15]} {[%emt 00:00:14]} 23. Bxd4 {[%clk 00:02:48]} {[%emt 00:00:02]} Qd6
{[%clk 00:01:53]} {[%emt 00:00:25]} 24. Bxd3 {[%clk 00:02:39]} {[%emt
00:00:13]} Nxd3 {[%clk 00:01:44]} {[%emt 00:00:12]} 25. Qxd3 {[%clk 00:02:40]}
{[%emt 00:00:01]} Bg4 {[%clk 00:01:25]} {[%emt 00:00:22]} 26. Rf1 {[%clk
00:02:37]} {[%emt 00:00:07]} Qe6 {[%clk 00:01:07]} {[%emt 00:00:21]} 27. Qc3
{[%clk 00:01:59]} {[%emt 00:00:44]} Rae8 {[%clk 00:00:52]} {[%emt 00:00:17]} 28.
a4 {[%clk 00:01:42]} {[%emt 00:00:19]} b6 {[%clk 00:00:45]} {[%emt 00:00:10]}
29. a5 {[%clk 00:01:42]} {[%emt 00:00:03]} Rf7 {[%clk 00:00:41]} {[%emt
00:00:07]} 30. a6 {[%clk 00:01:35]} {[%emt 00:00:10]} h5 {[%clk 00:00:30]}
{[%emt 00:00:14]} 31. Rf4 {[%clk 00:01:27]} {[%emt 00:00:11]} Bf5 {[%clk
00:00:23]} {[%emt 00:00:10]} 32. Nf3 {[%clk 00:01:16]} {[%emt 00:00:14]} Bh7
{[%clk 00:00:16]} {[%emt 00:00:10]} 33. Nh4 {[%clk 00:01:09]} {[%emt 00:00:11]}
Rc8 {[%clk 00:00:16]} {[%emt 00:00:03]} 34. Bxf6 {[%clk 00:01:05]} {[%emt
00:00:07]} Be4 {[%clk 00:00:15]} {[%emt 00:00:05]} 35. Bd4 {[%clk 00:00:31]}
{[%emt 00:00:37]} Rxc4 {[%emt 00:00:09]} 36. Qe1 {[%clk 00:00:26]} Rxf4 {[%clk
00:00:15]} {[%emt 00:00:04]} 37. Qg3+ {[%clk 00:00:19]} {[%emt 00:00:11]} Rg4
{[%clk 00:00:14]} {[%emt 00:00:03]} 38. Qb8+ {[%clk 00:00:21]} Rc8 {[%clk
00:00:12]} {[%emt 00:00:05]} 39. Qxa7 {[%clk 00:00:21]} {[%emt 00:00:03]} Rc1+
{[%clk 00:00:13]} {[%emt 00:00:02]} 40. Kf2 {[%clk 00:00:22]} {[%emt 00:00:02]}
Qa2+ {[%clk 00:00:14]} {[%emt 00:00:02]} 0-1

[Event "NJSK 2026 Jeugd B"]
[Site "Helmond, Netherlands"]
[Date "2026.05.01"]
[Round "10.1"]
[White "Groenewoud, Joel"]
[Black "De Jong, Lode"]
[Result "1-0"]
[TimeControl "90min/40moves + 30min + 30sec/move"]
[WhiteTitle "-"]
[BlackTitle "-"]
[WhiteFideId "1087746"]
[BlackFideId "40101860"]
[WhiteElo "2114"]
[BlackElo "1902"]

1. e4 {[%clk 00:05:04]} {[%emt 00:00:04]} c5 {[%clk 00:05:05]} {[%emt
00:00:02]} 2. Nf3 {[%clk 00:05:06]} d6 {[%clk 00:05:05]} {[%emt 00:00:19]} 3.
d4 {[%clk 00:05:08]} {[%emt 00:00:07]} cxd4 {[%clk 00:05:07]} {[%emt 00:00:03]}
4. Nxd4 {[%clk 00:05:10]} {[%emt 00:00:04]} Nf6 {[%clk 00:05:09]} {[%emt
00:00:02]} 5. Nc3 {[%clk 00:05:12]} {[%emt 00:00:05]} a6 {[%clk 00:05:11]} 6.
g3 {[%clk 00:05:14]} e5 {[%clk 00:05:10]} 7. Nde2 {[%clk 00:05:15]} Be7 {[%clk
00:05:08]} 8. Bg2 {[%clk 00:05:17]} b5 {[%clk 00:05:09]} 9. Nd5 {[%clk
00:05:18]} Nxd5 {[%clk 00:05:11]} 10. Qxd5 {[%clk 00:05:19]} Ra7 {[%clk
00:05:14]} 11. O-O {[%clk 00:05:19]} O-O {[%clk 00:05:06]} 12. Qd3 {[%clk
00:05:19]} {[%emt 00:00:03]} Nd7 {[%clk 00:05:01]} {[%emt 00:00:08]} 13. Be3
{[%clk 00:05:20]} {[%emt 00:00:02]} Rb7 {[%clk 00:04:58]} {[%emt 00:00:05]} 14.
Nc3 {[%clk 00:05:19]} {[%emt 00:00:05]} Nf6 {[%clk 00:04:59]} {[%emt 00:00:01]}
15. b3 {[%clk 00:05:21]} {[%emt 00:00:02]} Be6 {[%clk 00:04:38]} {[%emt
00:00:24]} 16. a4 {[%clk 00:05:22]} {[%emt 00:00:01]} b4 {[%clk 00:04:15]}
{[%emt 00:00:27]} 17. Qxa6 {[%clk 00:05:22]} {[%emt 00:00:02]} Qa8 {[%clk
00:03:27]} {[%emt 00:00:51]} 18. Qxa8 {[%clk 00:05:11]} {[%emt 00:00:14]} Rxa8
{[%clk 00:03:28]} 19. Nd5 {[%clk 00:04:19]} {[%emt 00:00:57]} Nxd5 {[%clk
00:03:30]} {[%emt 00:00:02]} 20. exd5 {[%clk 00:04:20]} {[%emt 00:00:02]} Bf5
{[%clk 00:03:32]} 21. Rfc1 {[%clk 00:04:17]} {[%emt 00:00:06]} Rc8 {[%clk
00:03:32]} {[%emt 00:00:02]} 22. Bf1 {[%clk 00:03:23]} {[%emt 00:00:57]} Rxc2
{[%clk 00:03:08]} {[%emt 00:00:28]} 23. a5 {[%clk 00:03:18]} {[%emt 00:00:09]}
Rxc1 {[%clk 00:02:47]} {[%emt 00:00:24]} 24. Rxc1 {[%clk 00:03:17]} {[%emt
00:00:04]} Rb8 {[%clk 00:02:49]} 25. a6 {[%clk 00:03:05]} {[%emt 00:00:16]} Be4
{[%clk 00:02:16]} {[%emt 00:00:36]} 26. a7 {[%clk 00:02:44]} {[%emt 00:00:24]}
Ra8 {[%clk 00:02:18]} 27. Rc7 {[%clk 00:02:41]} {[%emt 00:00:06]} Bd8 {[%clk
00:02:20]} {[%emt 00:00:02]} 28. Rb7 {[%clk 00:02:21]} {[%emt 00:00:23]} Bxd5
{[%clk 00:02:08]} {[%emt 00:00:15]} 29. Rb8 {[%clk 00:02:18]} {[%emt 00:00:05]}
Kf8 {[%clk 00:01:56]} {[%emt 00:00:16]} 30. Bb6 {[%clk 00:02:14]} {[%emt
00:00:06]} Ke8 {[%clk 00:01:27]} {[%emt 00:00:32]} 31. Bb5+ {[%clk 00:02:06]}
{[%emt 00:00:11]} Ke7 {[%clk 00:01:28]} {[%emt 00:00:02]} 32. Bxd8+ {[%clk
00:02:06]} {[%emt 00:00:03]} 1-0

[Event "NJSK 2026 Jeugd B"]
[Site "Helmond, Netherlands"]
[Date "2026.05.01"]
[Round "10.2"]
[White "Baarspul, Bram"]
[Black "Kurt, Sascha"]
[Result "0-1"]
[TimeControl "90min/40moves + 30min + 30sec/move"]
[WhiteTitle "-"]
[BlackTitle "-"]
[WhiteFideId "40106187"]
[BlackFideId "1082647"]
[WhiteElo "2177"]
[BlackElo "2280"]

1. e4 {[%clk 00:05:05]} c5 {[%clk 00:05:05]} {[%emt 00:00:02]} 2. Nf3 {[%clk
00:05:07]} {[%emt 00:00:04]} d6 {[%clk 00:05:08]} {[%emt 00:00:01]} 3. d4
{[%clk 00:05:10]} {[%emt 00:00:01]} cxd4 {[%clk 00:05:10]} 4. Nxd4 {[%clk
00:05:12]} Nf6 {[%clk 00:05:12]} {[%emt 00:00:03]} 5. Nc3 {[%clk 00:05:14]}
{[%emt 00:00:09]} a6 {[%clk 00:05:14]} {[%emt 00:00:05]} 6. Bd3 {[%clk
00:05:16]} {[%emt 00:00:01]} g6 {[%clk 00:05:17]} {[%emt 00:00:02]} 7. f3
{[%clk 00:05:18]} {[%emt 00:00:11]} Bg7 {[%clk 00:05:18]} {[%emt 00:00:04]} 8.
Be3 {[%clk 00:05:19]} {[%emt 00:00:04]} Nc6 {[%clk 00:05:19]} 9. Qd2 {[%clk
00:05:14]} Bd7 {[%clk 00:05:02]} 10. O-O-O {[%clk 00:05:08]} {[%emt 00:00:05]}
Rc8 {[%clk 00:04:57]} {[%emt 00:00:08]} 11. Kb1 {[%clk 00:05:03]} {[%emt
00:00:08]} O-O {[%clk 00:04:52]} {[%emt 00:00:08]} 12. g4 {[%clk 00:05:01]}
{[%emt 00:00:05]} b5 {[%clk 00:04:30]} {[%emt 00:00:25]} 13. h4 {[%clk
00:04:41]} {[%emt 00:00:23]} h5 {[%clk 00:04:25]} {[%emt 00:00:09]} 14. Nxc6
{[%clk 00:04:21]} {[%emt 00:00:23]} Bxc6 {[%clk 00:04:20]} {[%emt 00:00:09]} 15.
Bh6 {[%clk 00:04:17]} {[%emt 00:00:06]} b4 {[%clk 00:04:12]} {[%emt 00:00:11]}
16. Ne2 {[%clk 00:04:07]} {[%emt 00:00:12]} Qa5 {[%clk 00:03:55]} {[%emt
00:00:20]} 17. Bxg7 {[%clk 00:03:44]} {[%emt 00:00:26]} Kxg7 {[%clk 00:03:57]}
{[%emt 00:00:02]} 18. Rhg1 {[%clk 00:03:16]} {[%emt 00:00:30]} Rh8 {[%clk
00:03:43]} {[%emt 00:00:19]} 19. gxh5 {[%clk 00:03:02]} {[%emt 00:00:16]} Rxh5
{[%clk 00:03:39]} {[%emt 00:00:07]} 20. Ng3 {[%clk 00:02:47]} {[%emt 00:00:18]}
Rh7 {[%clk 00:03:06]} {[%emt 00:00:36]} 21. f4 {[%clk 00:02:21]} {[%emt
00:00:33]} Kf8 {[%clk 00:02:38]} {[%emt 00:00:28]} 22. f5 {[%clk 00:02:01]}
{[%emt 00:00:23]} Rxh4 {[%clk 00:02:18]} {[%emt 00:00:23]} 23. Qg5 {[%clk
00:01:45]} {[%emt 00:00:18]} Rh2 {[%clk 00:01:57]} {[%emt 00:00:25]} 24. e5
{[%clk 00:01:05]} {[%emt 00:00:44]} Qxe5 {[%clk 00:01:46]} {[%emt 00:00:14]} 25.
Rde1 {[%clk 00:01:05]} {[%emt 00:00:03]} Rg2 {[%clk 00:01:16]} {[%emt
00:00:34]} 26. Rxe5 {[%clk 00:00:15]} {[%emt 00:00:52]} Rxg1+ {[%clk 00:01:18]}
27. Bf1 {[%clk 00:00:17]} {[%emt 00:00:01]} dxe5 {[%clk 00:01:13]} {[%emt
00:00:08]} 28. fxg6 {[%clk 00:00:12]} {[%emt 00:00:07]} fxg6 {[%clk 00:01:10]}
{[%emt 00:00:06]} 29. Qh6+ {[%clk 00:00:05]} {[%emt 00:00:11]} Kf7 {[%clk
00:01:07]} {[%emt 00:00:06]} 30. Qe3 {[%clk 00:00:07]} Rd8 {[%clk 00:01:01]}
{[%emt 00:00:09]} 31. Qe2 {[%clk 00:00:05]} {[%emt 00:00:05]} Rxg3 {[%clk
00:00:55]} {[%emt 00:00:09]} 32. b3 {[%clk 00:00:05]} {[%emt 00:00:03]} Bb5
{[%clk 00:00:55]} {[%emt 00:00:03]} 33. Qf2 {[%clk 00:00:05]} {[%emt 00:00:03]}
Rd1+ {[%clk 00:00:54]} {[%emt 00:00:04]} 34. Kb2 {[%clk 00:00:08]} Rg4 {[%clk
00:00:29]} {[%emt 00:00:27]} 35. Bxb5 {[%clk 00:00:08]} {[%emt 00:00:03]} axb5
{[%clk 00:00:31]} 36. a3 {[%clk 00:00:09]} {[%emt 00:00:02]} bxa3+ {[%clk
00:00:33]} {[%emt 00:00:02]} 37. Kxa3 {[%clk 00:00:12]} b4+ {[%clk 00:00:35]}
38. Ka4 {[%clk 00:00:10]} {[%emt 00:00:06]} Rf4 {[%clk 00:00:31]} {[%emt
00:00:08]} 39. Qc5 {[%clk 00:00:08]} {[%emt 00:00:04]} Rd5 {[%clk 00:00:27]}
{[%emt 00:00:04]} 40. Qc7 {[%clk 00:00:09]} {[%emt 00:00:05]} Rd6 {[%clk
00:00:23]} {[%emt 00:00:07]} 41. Kb5 {[%clk 00:00:09]} {[%emt 00:00:04]} g5
{[%clk 00:00:21]} {[%emt 00:00:06]} 42. c4 {[%clk 00:00:09]} {[%emt 00:00:04]}
bxc3 {[%clk 00:00:19]} {[%emt 00:00:08]} 43. Qxc3 {[%clk 00:00:10]} {[%emt
00:00:01]} g4 {[%clk 00:00:20]} {[%emt 00:00:05]} 44. b4 {[%clk 00:00:07]}
{[%emt 00:00:02]} Rd5+ {[%clk 00:00:15]} {[%emt 00:00:05]} 45. Ka6 {[%clk
00:00:06]} {[%emt 00:00:03]} Rf3 {[%clk 00:00:16]} {[%emt 00:00:03]} 46. Qc4
{[%clk 00:00:07]} {[%emt 00:00:02]} g3 {[%clk 00:00:15]} {[%emt 00:00:03]} 47.
Qe2 {[%clk 00:00:05]} {[%emt 00:00:05]} Ra3+ {[%clk 00:00:16]} {[%emt
00:00:02]} 48. Kb6 {[%clk 00:00:04]} {[%emt 00:00:04]} e4 {[%clk 00:00:11]}
{[%emt 00:00:08]} 49. Kc6 {[%clk 00:00:05]} {[%emt 00:00:02]} e3 {[%clk
00:00:08]} {[%emt 00:00:06]} 50. b5 {[%clk 00:00:06]} {[%emt 00:00:02]} Rb3
{[%clk 00:00:06]} {[%emt 00:00:05]} 51. b6 {[%clk 00:00:07]} {[%emt 00:00:01]}
Rdb5 {[%clk 00:00:06]} {[%emt 00:00:03]} 52. Qc4+ {[%clk 00:00:09]} {[%emt
00:00:02]} e6 {[%clk 00:00:08]} 53. b7 {[%clk 00:00:05]} {[%emt 00:00:06]} Rxb7
{[%clk 00:00:10]} 54. Qh4 {[%emt 00:00:05]} R3b6+ {[%clk 00:00:11]} 55. Kc5
{[%clk 00:00:06]} {[%emt 00:00:01]} Rb5+ {[%clk 00:00:12]} {[%emt 00:00:02]} 56.
Kc6 {[%clk 00:00:09]} R7b6+ {[%clk 00:00:12]} {[%emt 00:00:04]} 57. Kc7 {[%clk
00:00:10]} {[%emt 00:00:02]} g2 {[%clk 00:00:10]} {[%emt 00:00:05]} 58. Qg3
{[%clk 00:00:05]} {[%emt 00:00:07]} Rb7+ {[%clk 00:00:08]} {[%emt 00:00:05]} 59.
Kc6 {[%clk 00:00:06]} {[%emt 00:00:02]} R5b6+ {[%clk 00:00:11]} 0-1